[Event "Uruguayan-ch Final 2021"]
[Site "Montevideo"]
[Date "2021.11.26"]
[Round "5.3"]
[White "Coppola, Claudio"]
[Black "Ulaneo, Nicolas"]
[Result "1-0"]
[ECO "A40"]
[WhiteElo "2248"]
[BlackElo "2164"]
[Annotator "ChessBase"]
[PlyCount "107"]
[EventDate "2021.11.22"]
[EventType "tourn"]
[EventCountry "URU"]
[SourceTitle "playchess.com"]
[Source "ChessBase"]
[SourceQuality "1"]
[TimeControl "40/5400+30:1800+30"]

1. d4 {[%emt 0:00:45]} Nf6 {[%emt 0:00:10]} 2. c4 {[%emt 0:00:13]} e6 {[%emt 0:00:14]} 3. g3 {[%emt 0:00:11]} Bb4+ {[%emt 0:00:19]} 4. Nd2 {[%emt 0:00:58]} O-O {[%emt 0:01:23]} 5. Bg2 {[%emt 0:03:14]} Re8 {[%emt 0:10:45]} 6. Ngf3 {[%emt 0:00:27]} Nc6 {[%emt 0:00:09]} 7. O-O {[%emt 0:00:39]} d5 {[%emt 0:03:14]} 8. Qc2 {[%emt 0:02:39]} e5 {[%emt 0:08:10]} 9. dxe5 {[%emt 0:03:01]} Nxe5 {[%emt 0:00:24]} 10. Nxe5 {[%emt 0:00:07]} Rxe5 {[%emt 0:01:07]} 11. Nf3 {[%emt 0:00:49]} Re8 {[%emt 0:03:18]} 12. cxd5 {[%emt 0:22:50]} Qxd5 {[%emt 0:01:56]} 13. Ng5 {[%emt 0:00:30]} Qc5 {[%emt 0:02:53]} 14. Qb3 {[%emt 0:01:54]} Qe7 {[%emt 0:01:49]} 15. e4 {[%emt 0:08:22]} Bc5 {[%emt 0:09:53]} 16. e5 {[%emt 0:04:51]} Ng4 {[%emt 0:01:02]} 17. Qc2 {[%emt 0:00:46]} g6 {[%emt 0:01:30]} 18. Ne4 {[%emt 0:00:28]} Bb6 {[%emt 0:07:55]} 19. h3 {[%emt 0:01:45]} Qxe5 {[%emt 0:10:54]} 20. hxg4 {[%emt 0:01:08]} Bxg4 {[%emt 0:00:03]} 21. Bf4 {[%emt 0:08:44]} Qf5 {[%emt 0:00:36]} 22. Rfe1 {[%emt 0:01:53]} Re6 {[%emt 0:06:08]} 23. Qc3 {[%emt 0:02:43]} Rd8 {[%emt 0:03:02]} 24. Ng5 {[%emt 0:04:12]} Bd4 {[%emt 0:04:13]} 25. Qxc7 {[%emt 0:01:37]} Bb6 {[%emt 0:06:15]} 26. Nxe6 {[%emt 0:15:07]} Bxc7 {[%emt 0:01:13]} 27. Nxd8 {[%emt 0:01:05]} Bxf4 {[%emt 0:08:05]} 28. Re8+ {[%emt 0:00:38]} Kg7 {[%emt 0:00:04]} 29. Re7 {[%emt 0:00:25]} Be5 {[%emt 0:03:47]} 30. Rxf7+ {[%emt 0:01:11]} Qxf7 {[%emt 0:00:05]} 31. Nxf7 {[%emt 0:00:02]} Kxf7 {[%emt 0:00:05]} 32. Bxb7 {[%emt 0:00:43]} Bxb2 {[%emt 0:00:12]} 33. Rb1 {[%emt 0:00:11]} Be5 {[%emt 0:02:13]} 34. Bd5+ {[%emt 0:00:11]} Kf6 {[%emt 0:00:12]} 35. Rb7 {[%emt 0:00:17]} Bd4 {[%emt 0:01:27]} 36. Rxh7 {[%emt 0:00:12]} Ke5 {[%emt 0:02:10]} 37. Bc6 {[%emt 0:01:14]} Be6 {[%emt 0:00:27]} 38. a4 {[%emt 0:00:30]} a5 {[%emt 0:00:50]} 39. Kg2 {[%emt 0:00:54]} Kd6 {[%emt 0:00:22]} 40. Be8 {[%emt 0:00:39]} Bd5+ {[%emt 0:00:53]} 41. f3 {[%emt 0:30:56]} g5 {[%emt 0:30:30]} 42. Bf7 {[%emt 0:11:30]} Bc6 {[%emt 0:00:42]} 43. Rh6+ {[%emt 0:00:00]} Kc5 {[%emt 0:00:00]} 44. Rg6 {[%emt 0:00:00]} Bxa4 {[%emt 0:00:00]} 45. Rxg5+ {[%emt 0:00:00]} Kb4 {[%emt 0:00:00]} 46. Rd5 {[%emt 0:00:00]} Bc5 {[%emt 0:00:00]} 47. g4 {[%emt 0:00:00]} Bc2 {[%emt 0:00:00]} 48. g5 {[%emt 0:00:00]} Be3 {[%emt 0:00:00]} 49. g6 {[%emt 0:00:00]} Bh6 {[%emt 0:00:00]} 50. Rd8 {[%emt 0:00:00]} a4 {[%emt 0:00:00]} 51. Rh8 {[%emt 0:00:00]} Bg7 {[%emt 0:00:00]} 52. Rg8 {[%emt 0:00:00]} Bf6 {[%emt 0:00:00]} 53. g7 {[%emt 0:00:00]} Ka3 {[%emt 0:04:02]} 54. Rc8 {[%emt 0:00:00]} 1-0

[Event "Uruguayan-ch Final 2021"]
[Site "Montevideo"]
[Date "2021.11.26"]
[Round "5.6"]
[White "Larrea, Manuel"]
[Black "Vazquez, Facundo"]
[Result "1-0"]
[ECO "C11"]
[WhiteElo "2222"]
[BlackElo "2163"]
[Annotator "ChessBase"]
[PlyCount "65"]
[EventDate "2021.11.22"]
[EventType "tourn"]
[EventCountry "URU"]
[SourceTitle "playchess.com"]
[Source "ChessBase"]
[SourceQuality "1"]
[TimeControl "40/5400+30:1800+30"]

1. e4 {[%emt 0:06:36]} e6 {[%emt 0:00:08]} 2. d4 {[%emt 0:00:09]} d5 {[%emt 0:00:08]} 3. Nc3 {[%emt 0:00:03]} Nf6 {[%emt 0:00:10]} 4. e5 {[%emt 0:00:09]} Nfd7 {[%emt 0:00:06]} 5. f4 {[%emt 0:00:10]} c5 {[%emt 0:00:07]} 6. Nf3 {[%emt 0:00:04]} Nc6 {[%emt 0:00:09]} 7. Be3 {[%emt 0:00:07]} Be7 {[%emt 0:00:09]} 8. Qd2 {[%emt 0:00:40]} O-O {[%emt 0:00:09]} 9. Be2 {[%emt 0:00:34]} b6 {[%emt 0:03:04]} 10. O-O {[%emt 0:02:33]} f5 {[%emt 0:01:51]} 11. Rfd1 {[%emt 0:05:48]} Kh8 {[%emt 0:07:01]} 12. a4 {[%emt 0:01:02]} Bb7 {[%emt 0:01:51]} 13. a5 {[%emt 0:07:21]} bxa5 {[%emt 0:08:48]} 14. Na4 {[%emt 0:04:12]} Nxd4 {[%emt 0:06:22]} 15. Nxd4 {[%emt 0:04:11]} cxd4 {[%emt 0:00:09]} 16. Bxd4 {[%emt 0:00:57]} Bc6 {[%emt 0:02:23]} 17. Qe3 {[%emt 0:15:27]} Rb8 {[%emt 0:05:57]} 18. b3 {[%emt 0:13:44]} Rb4 {[%emt 0:04:52]} 19. Nb2 {[%emt 0:02:12]} Rxd4 {[%emt 0:01:39]} 20. Rxd4 {[%emt 0:00:10]} Bc5 {[%emt 0:00:07]} 21. c3 {[%emt 0:09:46]} Qb6 {[%emt 0:02:40]} 22. Bd1 {[%emt 0:00:08]} Rc8 {[%emt 0:02:36]} 23. h3 {[%emt 0:02:39]} Bb5 {[%emt 0:02:54]} 24. g4 {[%emt 0:05:04]} fxg4 {[%emt 0:06:33]} 25. Bxg4 {[%emt 0:01:56]} Nb8 {[%emt 0:04:27]} 26. Rad1 {[%emt 0:07:03]} Bxd4 {[%emt 0:04:45]} 27. cxd4 {[%emt 0:00:39]} Rc2 {[%emt 0:00:21]} 28. Na4 {[%emt 0:04:46]} Bxa4 {[%emt 0:03:18]} 29. bxa4 {[%emt 0:00:01]} Rc4 {[%emt 0:06:58]} 30. f5 {[%emt 0:01:54]} exf5 {[%emt 0:01:04]} 31. e6 {[%emt 0:00:30]} Qd8 {[%emt 0:02:53]} 32. e7 {[%emt 0:00:51]} Qe8 {[%emt 0:00:12]} 33. Bh5 {[%emt 0:00:07]} 1-0